Cogmind - Beta 17 @@@ ROGUE MODE // 2026.06.23 @ 17:07:29 Player: CloudSeaKing Result: Self-destructed Performance ------------- Evolutions (1) 500 Regions Visited (3) 600 Robots Destroyed (19) 95 Value Destroyed (461) 461 Prototype IDs (0) 0 Alien Tech Used (0) 0 Bonus (0) 0 TOTAL SCORE: 1656 Bonus ------- None Cogmind --------- Core Integrity 282/400 Matter 295/300 Energy 90/100 System Corruption 0% Temperature Cool (9) Movement Walking (120) Location -9/Materials Parts ------- > --- POWER (1) -------- (None) > --- PROPULSION (3) --- Carbon-fiber Leg Carbon-fiber Leg Carbon-fiber Leg > --- UTILITY (3) ------ Small Storage Unit Weight Redist. System Advanced Targeting Computer > --- WEAPON (2) ------- Katana > --- INVENTORY (8) ---- Light Ion Engine Light Treads Aluminum Leg Compact Wheel Large Matter Pod (6) Advanced Targeting Computer EM Pulse Gun Peak State ------------ > --- POWER ------------ Light Ion Engine > --- PROPULSION ------- Carbon-fiber Leg Carbon-fiber Leg Carbon-fiber Leg > --- UTILITY ---------- Small Storage Unit Weight Redist. System Advanced Targeting Computer > --- WEAPON ----------- Small Laser Katana > --- INVENTORY -------- Light Ion Engine Light Treads Aluminum Leg Carbon-fiber Leg Compact Wheel Large Matter Pod Advanced Targeting Computer EM Pulse Gun [Rating: 21] Favorites ----------- Power Ion Engine Engine Ion Engine Propulsion Light Treads Treads Light Treads Leg Carbon-fiber Leg Wheel Wheel Utility Small Storage Unit Device Seismic Detector Storage Small Storage Unit Processor Advanced Targeting Computer Weapon Light Assault Rifle Energy Gun Small Laser Ballistic Gun Light Assault Rifle Slashing Weapon Katana Build | -11 -10 -10 -9 ------- Run | Yrd Mat Min Mat Slots Evolved 2 | . . . 2 Power . | . . . . Propulsion 1 | . . . 1 Utility 1 | . . . 1 Weapon . | . . . . Parts Attached 26 | 8 5 . 13 Power 4 | 1 1 . 2 Engine 4 | 1 1 . 2 Core . | . . . . Reactor . | . . . . Propulsion 10 | 2 1 . 7 Treads 2 | 2 . . . Leg 7 | . . . 7 Wheel 1 | . 1 . . Hover . | . . . . Flight . | . . . . Utility 5 | 2 1 . 2 Device 3 | 1 1 . 1 Storage 1 | 1 . . . Processor 1 | . . . 1 Hackware . | . . . . Protection . | . . . . Artifact . | . . . . Weapon 7 | 3 2 . 2 Energy Gun 4 | 2 1 . 1 Energy Cannon . | . . . . Ballistic Gun 2 | 1 1 . . Ballistic Cannon . | . . . . Launcher . | . . . . Special Weapon . | . . . . Impact Weapon . | . . . . Slashing Weapon 1 | . . . 1 Piercing Weapon . | . . . . Special Melee Weapon . | . . . . Unidentified Prototypes . | . . . . Parts Lost 12 | 2 2 . 8 Power 3 | 1 . . 2 Propulsion 3 | . 1 . 2 Utility 2 | . 1 . 1 Weapon 4 | 1 . . 3 Highest Loss Streak 5 | 2 2 . 5 To Critical Strikes . | . . . . Average Backups 7 | 7 6 7 7 Power 1 | 1 1 2 1 Propulsion 3 | 3 3 3 2 Utility . | . . . 1 Weapon 1 | . . 2 1 Tool/Special . | . . . . Unused Backups 7 | . . . 7 Power 1 | . . . 1 Propulsion 3 | . . . 3 Utility 2 | . . . 2 Weapon 1 | . . . 1 Tool/Special . | . . . . Average Slot Usage (%) 97 | . 97 100 95 Engine 12 | . 14 14 9 Treads 15 | . 24 14 4 Leg 8 | . . . 23 Wheel 4 | . 2 14 4 Device 13 | . 12 14 14 Storage 12 | . 14 14 11 Processor 2 | . . . 5 Energy Gun 9 | . 12 . 7 Ballistic Gun 15 | . 14 28 11 Peak Build Rating 21 | 8 9 9 21 Average Rating 9 | 7 7 9 16 On Entrance 6 | . 6 9 9 Avg Prop Armor Cover (%) 15 | . 13 13 18 Naked Turns . | . . . . Heaviest Build 15 | 13 14 13 15 Greatest Support 51 | 40 40 10 51 Greatest Overweight (x) 1 | 1 1 1 1 Average Overweight (x) . | . . 1 . Largest Inventory Capacity 8 | 8 8 8 8 Average Capacity 7 | 7 8 8 8 Most Carried 8 | 8 8 8 8 Average Carried 7 | 7 6 7 7 Final Capacity 8 | 8 8 8 8 Final Carried 8 | 8 7 8 7 Class Distribution -------------------- 100% | Mutant Dominant Class ---------------- Mutant | -10/Materials Mutant | -10/Mines Mutant | -9/Materials Resources | -11 -10 -10 -9 ----------- Run | Yrd Mat Min Mat Matter Collected 519 | 273 58 49 139 Remotely . | . . . . Salvage Created 569 | 51 147 31 340 Parts 37 | 5 11 2 19 Haulers Intercepted . | . . . . Recyclers Shooed 3 | 1 2 . . Parts Field Recycled . | . . . . Retrieved Matter . | . . . . Parts Self-Destructed . | . . . . Prevented . | . . . . Parts Restored . | . . . . Kills | -11 -10 -10 -9 ------- Run | Yrd Mat Min Mat Combat Hostiles Destroyed 17 | . 7 1 9 Melee 4 | . . . 4 Guns 13 | . 7 1 5 Classes Destroyed 5 | 1 2 . 2 Tunneler 2 | 2 . . . Swarmer 7 | . 5 . 2 Grunt 8 | . 2 1 5 Duelist 1 | . . . 1 Sentry 1 | . . . 1 Best Kill Streak 3 | 1 3 1 3 Combat Bots Only 3 | . 3 1 3 Max Kills in Single Turn 2 | 1 2 1 1 Gunslinging 1 | . 1 . . Exploded . | . . . . Melee 1 | . . . 1 Uniques/NPCs Destroyed . | . . . . Combat | -11 -10 -10 -9 -------- Run | Yrd Mat Min Mat Hostile Shots Fired 176 | 8 69 6 93 Missed 43 | . 16 1 26 Hits 133 | 8 53 5 67 Projectile 133 | 8 53 5 67 AOE 8 | 8 . . . Critical Strikes 2 | . . . 2 Damage Taken 1672 | 326 500 56 790 Core 327 | 66 120 23 118 Absorbed by Shields . | . . . . Core Remaining (%) 44 | 73 . 16 . Volleys Fired 68 | 7 30 4 27 Largest 2 | 2 2 2 2 Hottest 80 | 60 60 40 80 Shots Fired 134 | 12 60 8 54 Gun 134 | 12 60 8 54 Cannon . | . . . . Launcher . | . . . . Special . | . . . . Kinetic 88 | 7 35 8 38 Thermal 40 | 5 25 . 10 Explosive . | . . . . Electromagnetic 6 | . . . 6 Robot Hit Streak 13 | 6 13 3 13 Robot Miss Streak 4 | 1 4 1 2 Penetration Max . | . . . . Secondary Targets 3 | . 2 . 1 Max Gunslinging Chain 1 | . 1 . 1 Shots Hit Robots 105 | 8 39 6 52 Core Hits 37 | 2 15 2 18 Critical Kills . | . . . . Critical Parts Destroyed 1 | . . . 1 Critical Strikes 3 | . . . 3 Destroy 1 | . . . 1 Sever 2 | . . . 2 Melee Attacks 15 | . . . 15 Impact . | . . . . Slashing 15 | . . . 15 Piercing . | . . . . Sneak Attacks . | . . . . Combat Hostiles . | . . . . Follow-up Attacks . | . . . . Damage Inflicted 1164 | 81 377 46 660 Guns 916 | 81 377 46 412 Cannons . | . . . . Explosions . | . . . . Melee 248 | . . . 248 Ramming . | . . . . Kinetic 520 | 26 176 46 272 Thermal 334 | 55 201 . 78 Explosive . | . . . . Electromagnetic 62 | . . . 62 Impact . | . . . . Slashing 248 | . . . 248 Piercing . | . . . . Highest Corruption 2 | . 2 2 . Average Corruption 2 | . 2 2 . Corruption Purged . | . . . . Corruption Blocked . | . . . . Effects 5 | . . 5 . Message Errors 1 | . . 1 . Matter Fused 1 | . . 1 . Energy Discharges 1 | . . 1 . Misfires 1 | . . 1 . Weapon Failures 1 | . . 1 . Overload Shots . | . . . . Overflow Damage . | . . . . Projectiles . | . . . . Explosions . | . . . . Melee . | . . . . Knockbacks . | . . . . Impact . | . . . . Kinetic . | . . . . Secondary . | . . . . Self-Inflicted Damage . | . . . . Shots . | . . . . Rammed . | . . . . Targets Rammed . | . . . . Kicked . | . . . . Crushed . | . . . . Highest Temperature 153 | 40 153 12 57 Average Temperature 43 | 19 61 6 18 Received Heat Transfer 441 | . 99 24 318 Siege Activations . | . . . . Martial Activations . | . . . . Shielding Activations . | . . . . Robots Disrupted . | . . . . Combat Hostiles . | . . . . Robots Corrupted . | . . . . Combat Hostiles . | . . . . Parts Fried . | . . . . Impact Corruptions . | . . . . Robots Melted . | . . . . Combat Hostiles . | . . . . Parts Melted 2 | 1 1 . . Heat Transferred 750 | 125 450 . 175 Parts Sabotaged . | . . . . Parts Stolen . | . . . . Parts Stripped . | . . . . Power Chain Reactions . | . . . . Alert | -11 -10 -10 -9 ------- Run | Yrd Mat Min Mat Maximum Alert Level . | . . . . Low Security (%) 100 | 100 100 100 100 Level 1 . | . . . . Level 2 . | . . . . Level 3 . | . . . . Level 4 . | . . . . Level 5 . | . . . . High Security . | . . . . Max Security . | . . . . Peak Influence 110 | 5 70 38 110 Initial 23 | . . 23 2 Average 10 | . 14 25 23 Influence Increases 455 | 10 160 35 250 Destroy 0b10 Robot/C 340 | . 140 20 180 Destroy 0b10 Robot/NC 10 | 10 . . . Destroy Leader 60 | . 20 . 40 Lose Combat Pursuer 45 | . . 15 30 Influence Decreases 365 | 10 100 87 168 Entered New Map 43 | . . 37 6 Time Decay 232 | 10 80 50 92 Lost Part 90 | . 20 . 70 Squads Dispatched 2 | . 1 . 1 Investigation 1 | . . . 1 Extermination . | . . . . Reinforcement 1 | . 1 . . Assault . | . . . . Garrison . | . . . . Intercept . | . . . . Searches Triggered . | . . . . Construction Impeded . | . . . . Haulers Reinforced . | . . . . Active Scanning Responses . | . . . . Cargo Convoy Interrupts . | . . . . Stealth | -11 -10 -10 -9 --------- Run | Yrd Mat Min Mat Distress Signals 8 | . 3 . 5 Communications Jammed . | . . . . Distress Signals . | . . . . Times Spotted 40 | 3 16 4 17 Peak Tracking Total 9 | 2 5 3 9 Tactical Retreats 3 | . . 1 2 Traps | -11 -10 -10 -9 ------- Run | Yrd Mat Min Mat Traps Triggered 1 | . 1 . . Indirectly . | . . . . Trap Hack Attempts . | . . . . Triggered . | . . . . Disarmed . | . . . . Reprogrammed . | . . . . Reused . | . . . . Traps Extracted . | . . . . Installed . | . . . . Triggered . | . . . . Machines | -11 -10 -10 -9 ---------- Run | Yrd Mat Min Mat Machines Disabled . | . . . . Max in Single Turn . | . . . . Machines Repaired . | . . . . Machines Dismantled . | . . . . Machines Sabotaged . | . . . . Overloaded Fab Kills . | . . . . Hacking | -11 -10 -10 -9 --------- Run | Yrd Mat Min Mat Machines Accessed 6 | . 1 . 5 Terminals 5 | . 1 . 4 Fabricators . | . . . . Repair Stations . | . . . . Recycling Units 1 | . . . 1 Scanalyzers . | . . . . Garrison Access . | . . . . Total Hacks 12 | . 3 . 9 Successful 2 | . . . 2 Failed 10 | . 3 . 7 Catastrophic 3 | . 1 . 2 Database Lockouts . | . . . . Manual 6 | . 3 . 3 Terminals 10 | . 3 . 7 Fabricators . | . . . . Repair Stations . | . . . . Recycling Units 2 | . . . 2 Scanalyzers . | . . . . Garrison Access . | . . . . Terminal Hacks 2 | . . . 2 Hauler Manifests 1 | . . . 1 Zone Layout 1 | . . . 1 Fabricator Hacks . | . . . . Repair Station Hacks . | . . . . Recycling Unit Hacks . | . . . . Scanalyzer . | . . . . Garrison Access Hacks . | . . . . Unauthorized Hacks . | . . . . Terminals . | . . . . Fabricators . | . . . . Repair Stations . | . . . . Recycling Units . | . . . . Scanalyzers . | . . . . Garrison Access . | . . . . Data Cores Recovered . | . . . . Used . | . . . . Hacking Detections 6 | . 1 . 5 Full Trace Events 1 | . . . 1 Feedback Events . | . . . . Feedback Blocked . | . . . . Robot Schematics Acquired . | . . . . Robots Built . | . . . . Authchips . | . . . . Time . | . . . . Total Robot Build Rating . | . . . . Part Schematics Acquired . | . . . . Parts Built . | . . . . Authchips . | . . . . Time . | . . . . Total Part Build Rating . | . . . . Part Studies Acquired . | . . . . Parts Repaired . | . . . . Time . | . . . . Parts Recycled . | . . . . Recycled Matter . | . . . . Retrieved Matter . | . . . . Retrieved Components . | . . . . Parts Scanalyzed . | . . . . Part Schematics Acquired . | . . . . Parts Damaged . | . . . . Bothacking | -11 -10 -10 -9 ------------ Run | Yrd Mat Min Mat Used RIF Installer . | . . . . Robots Hacked . | . . . . Non-combat . | . . . . Combat . | . . . . Robot Hacks Applied . | . . . . Relay Couplers Released . | . . . . Fabnet Peak Effective % . | . . . . Robots Rewired . | . . . . Allies Hacked . | . . . . Hacks Repelled . | . . . . Allies | -11 -10 -10 -9 -------- Run | Yrd Mat Min Mat Total Allies . | . . . . Largest Group . | . . . . Highest-Rated Group . | . . . . Highest-Rated Ally . | . . . . Total Orders . | . . . . Ally Attacks . | . . . . Total Damage . | . . . . Kills . | . . . . Allies Corrupted . | . . . . Allies Melted . | . . . . Intel | -11 -10 -10 -9 ------- Run | Yrd Mat Min Mat Active Infowar (turns) 1122 | 554 346 101 121 Terrain 245 | . 23 101 121 Seismic 877 | 554 323 . . Robot Analysis Total . | . . . . Derelict Logs Recovered . | . . . . Drone Launches . | . . . . Drone Recoveries . | . . . . Exploration | -11 -10 -10 -9 ------------- Run | Yrd Mat Min Mat Turns Passed 1484 | 708 387 101 288 Spaces Moved 506 | 95 182 84 145 Core 8 | 8 . . . Treads 238 | 87 151 . . Legs 60 | . . . 60 Wheels 200 | . 31 84 85 Hover . | . . . . Flight . | . . . . Fastest Speed 50 | 50 95 95 80 Average Speed 126 | 152 148 95 98 Slowest Speed 160 | 160 160 95 120 Overloaded Moves . | . . . . Propulsion Burnouts . | . . . . Robots Hopped . | . . . . Potential Cave-ins . | . . . . Cave-ins Triggered . | . . . . Exploration Rate (%) 24 | 9 40 28 20 Regions Visited 3 Branch Regions 1 Pre-discovered Areas . | . . . . Known Exits Taken . | . . . . Unknown Exits Taken 3 | 1 1 1 . Scrap Searched 1 | . . 1 . Spaces Dug . | . . . . Terrain Destroyed . | . . . . Melee . | . . . . Projectile . | . . . . AOE . | . . . . Terrain Rammed . | . . . . Walls Destroyed . | . . . . Machines Disabled . | . . . . Actions | -11 -10 -10 -9 --------- Run | Yrd Mat Min Mat Total 1210 | 644 244 99 223 Wait 568 | 527 24 9 8 Move 503 | 94 181 83 145 Hop . | . . . . Pick Up 20 | 8 2 2 8 Fast Attach 10 | 7 1 . 2 Attach 11 | . 4 . 7 Detach 1 | . 1 . . Swap 7 | 1 1 . 5 Drop 7 | . . 1 6 Fire 68 | 7 30 4 27 Melee 15 | . . . 15 Ram . | . . . . Kick . | . . . . Crush . | . . . . Escape Stasis . | . . . . Rewire . | . . . . Trap . | . . . . Miscellaneous . | . . . . Route ------- -11/Scrapyard -10/Materials (discovered 2 exits: *Mat / [*Min]) -10/Mines -9/Materials History --------- Turn | Location | Event 88 | -11/Scrapyard | Discovered new exit (range 15) 697 | -11/Scrapyard | Assembled infested the area 709 | -11/Scrapyard | Entered Materials 731 | -10/Materials | Build established: Mutant 875 | -10/Materials | Discovered new exit (range 9) 1023 | -10/Materials | Core integrity fell below 50% 1084 | -10/Materials | Discovered new exit (range 6) 1096 | -10/Materials | Entered Mines 1121 | -10/Mines | Core integrity fell below 20% 1187 | -10/Mines | Discovered new exit (range 12) 1197 | -10/Mines | Entered Materials 1197 | -9/Materials | Evolved 2 slots: Propulsion x1, Utility x1 1384 | -9/Materials | Lost 5 parts (1p1n1u2w) 1485 | -9/Materials | Self-destructed Last Messages --------------- Rifle. 01442_ S-10 Pest destroyed. 01443_ R-06 Scavenger collects Flight Unit. 01450_ S-10 Pest Lgt. Assault Rifle severed. 01452_ Acquired 20 matter. 01459_ S-10 Pest destroyed. 01461_ Acquired 17 matter. 01462_ R-06 Scavenger collects Lgt. Ion Engine. 01468_ M-13 Machinist repairs G-34 Mercenary. 01468_ G-34 Mercenary destroyed. 01473_ R-06 Scavenger collects Heat Sink. 01476_ Sml. Laser destroyed. 01478_ R-06 Scavenger collects Lgt. Assault Rifle. 01479_ Carbon-fiber Leg destroyed. 01480_ G-34 Mercenary destroyed. 01482_ Critical hit (Burn: +37). 01483_ R-06 Scavenger collects Flight Unit. 01483_ Lgt. Ion Engine destroyed. 01485_ R-06 Scavenger collects Sml. Laser. Map ----- +----------------------------------------------------+ | | | ?????????????????????????????????????????????????? | | ?????????????????????????????????????????????????? | | ?????????????????????????????????????????????????? | | ?????????????????????????????????????????????????? | | ?????????????????????????????????????????????????? | | ?????????????????????????????????????????????????? | | ?????????????????????????????????????????????????? | | ?????????????????????????????????????????????????? | | ?????????????????????????????????????????????????? | | ?????????????????????????????????????????????????? | | ?????????????????????????????????????????????????? | | ?????????????????????????????????????????????????? | | ????????????????????????????????????????? ???????? | | ?????????????###?????????????????????????????????? | | ????????????? ????????????????????????????????? | | ?????????????? ????????????????????????? ??????? | | ?????????????? ????????????????????????????????? | | ?????????????? ????????????????????????????????? | | ??????????????? ????????????????????????????????? | | ??????????????? ??????????????????????? ??? ????? | | ??#######+######+###########?????????????????????? | | ? #???????????? ###### | | ? ##?????????# | | ? *%[ ???????? " | | ????????######### #####@####????????# | | ????????????????# # % #????????? ###### | | ????????????????# # Y r %#?????????##+???#?#?# | | ????????????????# /r #???????? ??????????# | | ????????????????# #s a #???????????????????# | | ????????????????#u # #???????????????????# | | ????????????????# # #????+??????????????# | | ????????????????# # #???? ?? ???????????# | | ????????????????# # #???? ??????????????# | | ????????????????# # #???? ???????"??????# | | ????????????????# #####/##+#???? ??????????????# | | ????????????????# #???#r #???? ?????????#?#??# | | ????????????????# #???# ##### #?????????????# | | ????????????????# #???# #????????????#? | | ????????????????# #??##r######## #??????#??????? | | ????????????????# #??# ## #????#?#??????? | | ????????????????# ???# """ ## #?######??????? | | ????????????????# ???# "Y" ## #?# !!#???????? | | ????????????????? ???# ## ### !!#???#???? | | ???????????????????????# !!! ## =!!#???????? | | ???????????????????????# !! + % #???????? | | ???????????????????????# !! ## #???????? | | ??????????????????????# ## #???????? | | ??????????????????????## ## #######?????? | | ???????????????????????#######+## ^ #?#???? | +----------------------------------------------------+ Best States ------------- Heat Dissipation 28 Energy Generation 12 Energy Capacity 265 Matter Stores 300 Matter Capacity 300 Sight Range 16 Terrain Scan Range 16 Terrain Scan Density 10 Additional Mass Support 6 Evasion (%) 55 Targeting Accuracy 8 Recoil Reduction 2 Item Schematics ----------------- None Robot Schematics ------------------ None Fabricated ------------ Nothing Repaired ---------- Nothing Studied --------- None Alien Tech Used ----------------- None Achievements -------------- Curiosity Killed The Cat Challenges ------------ None Game ------ Seed ModifiedSensorMachine Manual? 0 Play Time 00:10:33 Cumulative 49.2 hours Start 2026.06.23 @ 16:57:52 End 2026.06.23 @ 17:07:29 Sessions 1 Manual Loads 0 Difficulty Rogue Special Mode None Game No. 54 Rogue 54 Adventurer 0 Explorer 0 Win Type - Total 2 Types 2/0/0/0/0/0/0/0/0/0 Lore% 30 Gallery% 34 Achievement% 33 Wizard Run 0 Options --------- Layout 1 ASCII 0 Keyboard 0 Movement Arrows Keybinds 0 Fullscreen 2 Font 32/SmallcapsGlow Map View 50x35 Zoom Use 0% Tactical HUD 1 Map Filters NONE Filters NONE Steam 1 RUN: 9640484a-0578-49ff-979c-7b735f3da8a8